fUSD/lending_fUSD_20250923
["ID","MTS","AMOUNT","RATE_DAILY","PERIOD"]
[387188751,1758624633965,-844.35788172,0.00025786,2]
[387188752,1758624633978,-1826.01259105,0.00025786,2]
[387188753,1758624634008,-834.46466102,0.00025786,2]
[387188754,1758624634020,-1755.48042454,0.00025786,2]
[387188755,1758624634033,-872.63356536,0.00025786,2]
[387188756,1758624634046,-16785.59879854,0.00025786,2]
[387188757,1758624634056,-1000.0,0.0002579,2]
[387188758,1758624634067,-200.0,0.00025792,2]
[387188759,1758624634077,-585.94970232,0.00025799,8]
[387188760,1758624634087,-836.96439902,0.00025799,2]
[387188761,1758624634098,-169.92549347,0.00025799,2]
[387188762,1758624634113,-181.69759014,0.00025799,50]
[387188763,1758624634124,-7246.04425436,0.0002588,2]
[387188764,1758624634135,-173.21307193,0.0002588,2]
[387188765,1758624634146,-2095.9723,0.0002589,2]
[387188766,1758624634156,-2098.52779024,0.0002589,2]
[387188772,1758624637644,-4227.0,0.00023939,2]
[387188773,1758624637654,-13668.25610626,0.000249,2]
[387188774,1758624637664,-1890.61801591,0.00025745,4]
[387188775,1758624637683,-2988.00809768,0.00025745,4]
[387188776,1758624637694,-6475.36513633,0.00025745,4]
[387188777,1758624637733,-447.20556288,0.00025745,4]
[387188778,1758624638626,-1867.05929318,0.00025745,4]
[387188779,1758624638636,-189571.76140976,0.0002589,2]
[387188780,1758624638646,-160.58776779,0.00025899,2]
[387188781,1758624638657,-334.67896212,0.000259,2]
[387188782,1758624638666,-628.1087573,0.000259,2]
[387188783,1758624638676,-4954.19242246,0.00025903,2]
[387188784,1758624638686,-420.0,0.00025961,2]
[387188785,1758624638695,-58860.4386476,0.0002597,2]
[387188786,1758624638705,-500.0,0.00025973,2]
[387188787,1758624638714,-29430.2193238,0.00025978,2]
[387188788,1758624638723,-770.0,0.00025978,7]
[387188789,1758624638733,-500.0,0.0002598,5]
[387188790,1758624638743,-58860.4386476,0.0002598,2]
[387188791,1758624638752,-152.13,0.0002598,2]
[387188792,1758624638762,-345.27139449,0.0002598,2]
[387188793,1758624638771,-600.0,0.00025981,2]
[387188794,1758624638781,-6541.7574386,0.00025988,2]
[387188795,1758624638790,-1099.0852543,0.00025988,2]
[387188796,1758624638799,-2788.6970199,0.00025988,2]
[387188797,1758624638808,-1166.6165166,0.00025988,2]
[387188798,1758624638817,-27511.2574466,0.00025988,2]
[387188799,1758624638827,-3163.7362042,0.00025988,2]
[387188800,1758624638837,-1921.3462018,0.00025988,2]
[387188801,1758624638846,-2083.4620386,0.00025988,2]
[387188802,1758624638855,-11783.9074004,0.00025989,2]
[387188803,1758624638864,-1000.0,0.00025989,2]
[387188804,1758624638873,-1000.0,0.00025989,2]
[387188805,1758624638883,-7749.30487374,0.0002599,2]
[387188806,1758624638907,-1893.07921605,0.0002599,2]
[387188807,1758624638919,-7343.00617566,0.0002599,2]
[387188853,1758624639627,-5274.01470048,0.0002599,2]
[387188854,1758624639841,-452.07002798,0.0002599,2]
[387188855,1758624639853,-448172.03418709,0.0002599,2]
[387188856,1758624639862,-354368.53132111,0.0002599,2]
[387188857,1758624639896,-714.31854171,0.0002599,2]
[387189126,1758624643179,-5241.2239167,0.0002599,2]
[387189129,1758624643199,-205791.75241648,0.0002599,2]
[387189131,1758624643209,-666.0,0.00025999,2]
[387189133,1758624643219,-1000.0,0.00025999,2]
[387189135,1758624643229,-1000.0,0.00025999,2]
[387189137,1758624643238,-578.108,0.00025999,12]
[387189139,1758624643248,-150.0,0.00025999,2]
[387189142,1758624643258,-1000.0,0.00025999,2]
[387189145,1758624643267,-5815.12159172,0.00026,2]
[387189149,1758624643278,-3457.8,0.00026,2]
[387189156,1758624643336,-4561.8500242,0.00026,2]
[387189186,1758624645828,-572.87,0.00022826,2]
[387189187,1758624645838,-899.0,0.00023939,2]
[387189188,1758624645848,-572.87,0.00024294,2]
[387189189,1758624645858,-4245.0,0.000248,5]
[387189190,1758624645868,-572.87,0.00025763,7]
[387189191,1758624645877,-2809.73729194,0.00026,2]
[387189192,1758624645889,-10301.11446732,0.00026,2]
[387189193,1758624645913,-361.61365464,0.00026,2]
[387189194,1758624645925,-331.96507016,0.00026,2]
[387189195,1758624645937,-8593.34036915,0.00026,2]
[387189196,1758624645968,-8202.32032388,0.00026,2]
[387189197,1758624645980,-1160.91766996,0.00026,2]
[387189208,1758624777502,500.0,0.00013699,2]
[387189209,1758624883831,2000.0,0.00030137,120]
[387189210,1758624915335,6000.0,0.00030137,120]
[387189211,1758624952525,15300.0,0.000299,120]
[387189212,1758624989738,156.06,0.00011759,2]
[387189213,1758625073187,826.24,0.00030137,120]
[387189258,1758625831885,-163.98,0.00019441,2]
[387189259,1758625831895,-580.53004704,0.00019489,2]
[387189260,1758625832041,-471.46995296,0.00019489,2]
[387189261,1758625832050,-158.0,0.00019489,2]
[387189262,1758625832060,-1187.64825924,0.00019489,2]
[387189263,1758625832072,-12.35174076,0.00019489,2]
[387189264,1758625832082,-300.0,0.00019489,2]
[387189265,1758625832092,-126.76128621,0.00019489,2]
[387189266,1758625832112,-1151.70689638,0.00019489,2]
[387189267,1758625832122,-250.0,0.00019489,2]
[387189268,1758625832131,-150.0,0.00019489,2]
[387189269,1758625832141,-16940.31269018,0.0001949,5]
[387189270,1758625832252,-400.0,0.0001949,5]
[387189271,1758625832265,-2659.68730982,0.0001949,5]
[387189272,1758625832274,-250.0,0.00019529,2]
[387189273,1758625832284,-299.0,0.00019589,2]
[387189274,1758625832294,-1086.33036409,0.0001959,3]
[387189275,1758625832305,-5704.98232609,0.0001959,3]
[387189278,1758625832321,-7178.71173024,0.0001959,3]
[387189315,1758625837807,-6029.97557958,0.0001959,3]
[387189316,1758625837817,-554.7502005,0.0001959,3]
[387189317,1758625837828,-1315.68623605,0.0001959,3]
[387189318,1758625837906,-610.56010705,0.0001959,3]
[387189319,1758625838080,-460.36906848,0.0001959,3]
[387189320,1758625838092,-14575.17125966,0.0001959,3]
[387189321,1758625838229,-1502.62659752,0.0001959,3]
[387189326,1758625839761,-314.94499064,0.0001959,3]
[387189328,1758625840201,-665.8915401,0.0001959,3]
[387189329,1758625840217,-20000.0,0.0001959,3]
[387189330,1758625840233,-2549.70751168,0.000196,2]
[387189331,1758625840249,-20000.0,0.0001969,5]
[387189332,1758625840265,-5277.1367998,0.0001969,2]
[387189333,1758625840281,-151.0,0.00019722,2]
[387189334,1758625840296,-20000.0,0.0001975,5]
[387189335,1758625840313,-20000.0,0.0001979,5]
[387189336,1758625840328,-20000.0,0.0001979,3]
[387189337,1758625840343,-516.64379166,0.0001979,3]
[387189338,1758625840359,-500.0,0.0001988,2]
[387189339,1758625840374,-200.0,0.00019988,2]
[387189340,1758625840390,-151.0,0.00019988,2]
[387189341,1758625840405,-151.0,0.00019988,2]
[387189342,1758625840421,-151.0,0.00019988,2]
[387189343,1758625840437,-151.0,0.00019988,2]
[387189344,1758625840461,-151.0,0.00019988,2]
[387189345,1758625840476,-151.0,0.00019988,2]
[387189346,1758625840492,-151.0,0.00019988,2]
[387189347,1758625840507,-151.0,0.00019988,2]
[387189348,1758625840523,-151.0,0.00019988,2]
[387189349,1758625840538,-151.0,0.00019988,2]
[387189350,1758625840554,-151.0,0.00019988,2]
[387189351,1758625840570,-151.0,0.00019988,2]
[387189352,1758625840586,-151.0,0.00019988,2]
[387189353,1758625840602,-151.0,0.00019988,2]
[387189354,1758625840617,-151.0,0.00019988,2]
[387189355,1758625840633,-151.0,0.00019988,2]
[387189356,1758625840648,-151.0,0.00019988,2]
[387189357,1758625840663,-151.0,0.00019988,2]
[387189358,1758625840678,-151.0,0.00019988,2]
[387189359,1758625840693,-151.0,0.00019988,2]
[387189360,1758625840709,-1000.0,0.0002,2]
[387189361,1758625840724,-1000.0,0.0002,2]
[387189362,1758625840740,-1000.0,0.0002,2]
[387189363,1758625840755,-1000.0,0.0002,2]
[387189364,1758625840771,-1000.0,0.0002,2]
[387189365,1758625840787,-1000.0,0.0002,2]
[387189366,1758625840804,-1000.0,0.0002,2]
[387189367,1758625840821,-1000.0,0.0002,2]
[387189368,1758625840831,-1000.0,0.0002,2]
[387189369,1758625840840,-1000.0,0.0002,2]
[387189370,1758625840851,-1000.0,0.0002,2]
[387189371,1758625840860,-1000.0,0.0002,2]
[387189372,1758625840870,-1000.0,0.0002,2]
[387189373,1758625840879,-1000.0,0.0002,2]
[387189374,1758625840889,-1000.0,0.0002,2]
[387189375,1758625840898,-1000.0,0.0002,2]
[387189376,1758625840908,-1000.0,0.0002,2]
[387189377,1758625841267,-1000.0,0.0002,2]
[387189378,1758625841310,-1000.0,0.0002,2]
[387189379,1758625841331,-1000.0,0.0002,2]
[387189380,1758625841340,-1000.0,0.0002,2]
[387189381,1758625841349,-1000.0,0.0002,2]
[387189382,1758625841359,-1000.0,0.0002,2]
[387189383,1758625841368,-1000.0,0.0002,2]
[387189384,1758625841377,-1000.0,0.0002,2]
[387189385,1758625841386,-1000.0,0.0002,2]
[387189386,1758625841395,-1000.0,0.0002,2]
[387189387,1758625841405,-1000.0,0.0002,2]
[387189388,1758625841414,-1000.0,0.0002,2]
[387189389,1758625841423,-1000.0,0.0002,2]
[387189390,1758625841433,-1000.0,0.0002,2]
[387189391,1758625841443,-1000.0,0.0002,2]
[387189392,1758625841455,-1000.0,0.0002,2]
[387189393,1758625841464,-1000.0,0.0002,2]
[387189394,1758625841474,-1000.0,0.0002,2]
[387189395,1758625841483,-1000.0,0.0002,2]
[387189396,1758625841492,-1000.0,0.0002,2]
[387189397,1758625841502,-1000.0,0.0002,2]
[387189398,1758625841511,-1000.0,0.0002,2]
[387189399,1758625841520,-1000.0,0.0002,2]
[387189400,1758625841530,-1000.0,0.0002,2]
[387189401,1758625841541,-1000.0,0.0002,2]
[387189402,1758625841550,-1000.0,0.0002,2]
[387189403,1758625841560,-1000.0,0.0002,2]
[387189404,1758625841569,-1000.0,0.0002,2]
[387189405,1758625841578,-1000.0,0.0002,2]
[387189406,1758625841588,-1000.0,0.0002,2]
[387189407,1758625841597,-1000.0,0.0002,2]
[387189408,1758625841607,-1000.0,0.0002,2]
[387189409,1758625841618,-1000.0,0.0002,2]
[387189410,1758625841627,-1000.0,0.0002,2]
[387189411,1758625841637,-1319.10044956,0.0002,2]
[387189412,1758625841647,-3181.0,0.0002,7]
[387189413,1758625841656,-213.81484291,0.0002,2]
[387189414,1758625841665,-150.0,0.0002,2]
[387189415,1758625841675,-150.0,0.0002,2]
[387189416,1758625841684,-255.98096543,0.0002,2]
[387189417,1758625841693,-150.0,0.0002,2]
[387189418,1758625841703,-150.0,0.0002,2]
[387189419,1758625841712,-500.0,0.0002,2]
[387189420,1758625841721,-500.0,0.0002,2]
[387189421,1758625841730,-150.0,0.0002,2]
[387189422,1758625841739,-150.0,0.0002,2]
[387189423,1758625841748,-150.0,0.0002,2]
[387189424,1758625841757,-150.0,0.0002,2]
[387189425,1758625841767,-1000.0,0.0002,2]
[387189426,1758625841776,-1000.0,0.0002,2]
[387189427,1758625841786,-500.0,0.0002,2]
[387189428,1758625841795,-150.0,0.0002,2]
[387189429,1758625841804,-150.0,0.0002,2]
[387189430,1758625841814,-500.0,0.0002,2]
[387189431,1758625841823,-150.0,0.0002,2]
[387189432,1758625841832,-150.86588004,0.0002,2]
[387189433,1758625841842,-150.0,0.0002,2]
[387189434,1758625841852,-500.0,0.0002,2]
[387189435,1758625841861,-500.0,0.0002,2]
[387189436,1758625841870,-150.0,0.0002,2]
[387189437,1758625841879,-500.0,0.0002,2]
[387189438,1758625841889,-150.0,0.0002,2]
[387189439,1758625841898,-150.0,0.0002,2]
[387189440,1758625841907,-500.0,0.0002,2]
[387189441,1758625841917,-500.0,0.0002,2]
[387189442,1758625841926,-150.0,0.0002,2]
[387189443,1758625841935,-764.0,0.0002,2]
[387189444,1758625841944,-150.0,0.0002,2]
[387189445,1758625841953,-150.0,0.0002,2]
[387189446,1758625841963,-500.0,0.0002,2]
[387189447,1758625841972,-500.0,0.0002,2]
[387189448,1758625841981,-500.0,0.0002,2]
[387189449,1758625841990,-150.0,0.0002,2]
[387189450,1758625842000,-500.0,0.0002,2]
[387189451,1758625842010,-150.0,0.0002,2]
[387189452,1758625842020,-150.0,0.0002,2]
[387189453,1758625842029,-500.0,0.0002,2]
[387189454,1758625842038,-600.0,0.0002,2]
[387189455,1758625842047,-202.43901634,0.0002,2]
[387189456,1758625842057,-500.0,0.0002,2]
[387189457,1758625842066,-500.0,0.0002,2]
[387189458,1758625842076,-150.0,0.0002,2]
[387189459,1758625842085,-441.0,0.0002,2]
[387189460,1758625842094,-500.0,0.0002,2]
[387189461,1758625842105,-151.69,0.00020052,2]
[387189462,1758625842114,-1000.0,0.00020169,2]
[387189463,1758625842124,-24846.77,0.0002017,2]
[387189464,1758625842133,-516.64379166,0.000202,3]
[387189465,1758625842142,-150.0,0.00020274,2]
[387189466,1758625842151,-150.0,0.00020274,2]
[387189467,1758625842160,-150.0,0.00020274,2]
[387189468,1758625842170,-500.0,0.00020274,2]
[387189469,1758625842179,-500.0,0.00020274,2]
[387189470,1758625842188,-150.0,0.00020274,2]
[387189471,1758625842197,-150.0,0.00020274,2]
[387189472,1758625842207,-253.34808058,0.00020274,2]
[387189473,1758625842216,-200.7180384,0.00020274,2]
[387189474,1758625842225,-500.0,0.00020274,2]
[387189475,1758625842234,-150.0,0.00020274,2]
[387189476,1758625842243,-150.0,0.00020274,2]
[387189477,1758625842253,-500.0,0.00020274,2]
[387189478,1758625842262,-200.0,0.00020274,2]
[387189479,1758625842272,-150.0,0.00020274,2]
[387189480,1758625842282,-500.0,0.00020274,2]
[387189481,1758625842292,-500.0,0.00020274,2]
[387189482,1758625842301,-150.0,0.00020274,2]
[387189483,1758625842312,-500.0,0.00020274,2]
[387189484,1758625842321,-150.0,0.00020274,2]
[387189485,1758625842331,-150.0,0.00020274,2]
[387189486,1758625842340,-500.0,0.00020274,2]
[387189487,1758625842352,-500.0,0.00020274,2]
[387189488,1758625842362,-150.0,0.00020274,2]
[387189489,1758625842371,-764.0,0.00020274,2]
[387189490,1758625842380,-150.0,0.00020274,2]
[387189491,1758625842393,-150.0,0.00020274,2]
[387189492,1758625842403,-500.0,0.00020274,2]
[387189493,1758625842412,-500.0,0.00020274,2]
[387189494,1758625842422,-500.0,0.00020274,2]
[387189495,1758625842431,-263.76242463,0.00020274,2]
[387189496,1758625842442,-500.0,0.00020274,2]
[387189497,1758625842456,-157.21239969,0.00020274,2]
[387189498,1758625842465,-150.0,0.00020274,2]
[387189499,1758625842475,-500.0,0.00020274,2]
[387189500,1758625842484,-500.0,0.00020274,2]
[387189501,1758625842494,-606.35032092,0.00020274,2]
[387189502,1758625842503,-441.0,0.00020274,2]
[387189503,1758625842513,-500.0,0.00020274,2]
[387189504,1758625842523,-392.18068632,0.00020331,2]
[387189505,1758625842533,-5277.13679974,0.00020367,2]
[387189506,1758625842542,-1000.0,0.00020428,2]
[387189507,1758625842552,-150.0,0.00020548,2]
[387189508,1758625842562,-150.0,0.00020548,2]
[387189509,1758625842571,-150.0,0.00020548,2]
[387189511,1758625842581,-244.80825872,0.00020548,2]
[387189512,1758625842591,-500.0,0.00020548,2]
[387189513,1758625842601,-150.0,0.00020548,2]
[387189514,1758625842612,-150.0,0.00020548,2]
[387189515,1758625842622,-500.0,0.00020548,2]
[387189516,1758625842632,-150.0,0.00020548,2]
[387189517,1758625842641,-150.0,0.00020548,2]
[387189518,1758625842651,-408.54199819,0.00020548,2]
[387189519,1758625842661,-150.0,0.00020548,2]
[387189520,1758625842670,-500.0,0.00020548,2]
[387189521,1758625842680,-500.0,0.00020548,2]
[387189522,1758625842689,-150.0,0.00020548,2]
[387189523,1758625842699,-500.0,0.00020548,2]
[387189524,1758625842708,-150.0,0.00020548,2]
[387189525,1758625842718,-150.0,0.00020548,2]
[387189526,1758625842728,-600.0,0.00020548,2]
[387189527,1758625842737,-500.0,0.00020548,2]
[387189528,1758625842746,-150.0,0.00020548,2]
[387189529,1758625842756,-764.0,0.00020548,2]
[387189530,1758625842766,-150.0,0.00020548,2]
[387189532,1758625842776,-150.0,0.00020548,2]
[387189533,1758625842786,-500.0,0.00020548,2]
[387189535,1758625842796,-500.0,0.00020548,2]
[387189536,1758625842805,-500.0,0.00020548,2]
[387189537,1758625842814,-405.77174733,0.00020548,2]
[387189538,1758625842824,-200.0,0.00020548,2]
[387189539,1758625842833,-500.0,0.00020548,2]
[387189540,1758625842843,-433.97793876,0.00020548,2]
[387189541,1758625842854,-441.0,0.00020548,2]
[387189542,1758625842863,-500.0,0.00020548,2]
[387189543,1758625842873,-1990.44,0.00020574,2]
[387189544,1758625842883,-150.24,0.00020725,2]
[387189545,1758625842893,-221.44,0.00020753,2]
[387189546,1758625842903,-2503.09,0.00020773,2]
[387189547,1758625842912,-152.96048792,0.00020822,2]
[387189548,1758625842922,-150.0,0.00020822,2]
[387189549,1758625842931,-150.0,0.00020822,2]
[387189550,1758625842941,-277.61802922,0.00020822,2]
[387189551,1758625842951,-205.46378157,0.00020822,2]
[387189552,1758625842960,-150.0,0.00020822,2]
[387189553,1758625842970,-500.0,0.00020822,2]
[387189554,1758625842980,-152.13274211,0.00020822,2]
[387189555,1758625842990,-150.0,0.00020822,2]
[387189556,1758625842999,-150.0,0.00020822,2]
[387189557,1758625843009,-500.0,0.00020822,2]
[387189558,1758625843018,-367.30381862,0.00020822,2]
[387189559,1758625843028,-151.0665178,0.00020822,2]
[387189560,1758625843037,-500.0,0.00020822,2]
[387189561,1758625843047,-150.0,0.00020822,2]
[387189562,1758625843056,-200.0,0.00020822,2]
[387189563,1758625843066,-500.0,0.00020822,2]
[387189564,1758625843076,-764.0,0.00020822,2]
[387189565,1758625843085,-213.7985424,0.00020822,2]
[387189566,1758625843095,-150.0,0.00020822,2]
[387189567,1758625843105,-500.0,0.00020822,2]
[387189568,1758625843115,-500.0,0.00020822,2]
[387189569,1758625843126,-500.0,0.00020822,2]
[387189570,1758625843136,-500.0,0.00020822,2]
[387189571,1758625843145,-441.0,0.00020822,2]
[387189572,1758625843155,-500.0,0.00020822,2]
[387189573,1758625843165,-500.0,0.00020976,2]
[387189574,1758625843174,-5277.13679974,0.00021043,2]
[387189575,1758625843184,-214.45720574,0.00021096,2]
[387189576,1758625843194,-150.0,0.00021096,2]
[387189577,1758625843204,-150.0,0.00021096,2]
[387189578,1758625843214,-500.0,0.00021096,2]
[387189579,1758625843223,-255.49372686,0.00021096,2]
[387189580,1758625843232,-150.0,0.00021096,2]
[387189581,1758625843242,-500.0,0.00021096,2]
[387189582,1758625843252,-500.0,0.00021096,2]
[387189584,1758625843261,-150.0,0.00021096,2]
[387189586,1758625843271,-500.0,0.00021096,2]
[387189588,1758625843281,-764.0,0.00021096,2]
[387189590,1758625843291,-204.29556799,0.00021096,2]
[387189592,1758625843300,-213.56249755,0.00021096,2]
[387189594,1758625843309,-500.0,0.00021096,2]
[387189596,1758625843319,-500.0,0.00021096,2]
[387189598,1758625843328,-587.01275339,0.00021096,2]
[387189600,1758625843338,-441.0,0.00021096,2]
[387189602,1758625843347,-500.0,0.00021096,2]
[387189604,1758625843357,-200.0,0.00021113,2]
[387189606,1758625843368,-150.0,0.00021123,2]
[387189608,1758625843377,-206.74,0.00021139,4]
[387189610,1758625843387,-949.0,0.00021155,2]
[387189611,1758625843396,-150.0,0.00021156,2]
[387189612,1758625843405,-169.92549347,0.00021185,2]
[387189613,1758625843414,-1000.0,0.00021192,2]
[387189614,1758625843424,-300.92,0.00021207,2]
[387189615,1758625843433,-420.0,0.00021232,2]
[387189616,1758625843445,-8788.98,0.00021247,2]
[387189617,1758625843455,-200.0,0.00021285,2]
[387189618,1758625843464,-1680.0,0.00021335,2]
[387189619,1758625843474,-516.64379166,0.00021362,2]
[387189620,1758625843484,-152.92628102,0.0002137,2]
[387189621,1758625843494,-150.0,0.0002137,2]
[387189622,1758625843504,-500.0,0.0002137,2]
[387189623,1758625843513,-200.0,0.0002137,2]
[387189624,1758625843523,-500.0,0.0002137,2]
[387189625,1758625843533,-303.81202595,0.0002137,2]
[387189626,1758625843542,-250.0,0.0002137,2]
[387189627,1758625843552,-500.0,0.0002137,2]
[387189628,1758625843562,-764.0,0.0002137,2]
[387189629,1758625843572,-500.0,0.0002137,2]
[387189630,1758625843581,-500.0,0.0002137,2]
[387189631,1758625843591,-441.0,0.0002137,2]
[387189632,1758625843600,-500.0,0.0002137,2]
[387189633,1758625843610,-150.0,0.00021438,2]
[387189634,1758625843619,-2500.0,0.00021438,2]
[387189635,1758625843629,-500.0,0.00021438,2]
[387189636,1758625843639,-250.0,0.00021438,2]
[387189637,1758625843648,-2000.0,0.00021438,3]
[387189638,1758625843658,-800.0,0.00021578,2]
[387189639,1758625843667,-153.84985297,0.00021644,2]
[387189640,1758625843676,-500.0,0.00021644,2]
[387189641,1758625843686,-500.0,0.00021644,2]
[387189642,1758625843695,-764.0,0.00021644,2]
[387189643,1758625843705,-500.0,0.00021644,2]
[387189644,1758625843714,-500.0,0.00021644,2]
[387189645,1758625843723,-441.0,0.00021644,2]
[387189646,1758625843733,-500.0,0.00021644,2]
[387189647,1758625843743,-5277.13679974,0.0002172,2]
[387189648,1758625843752,-171.61,0.00021807,2]
[387189649,1758625843761,-214.71,0.00021818,2]
[387189650,1758625843770,-500.0,0.00021918,2]
[387189651,1758625843780,-5000.0,0.00021918,2]
[387189652,1758625843789,-500.0,0.00021918,2]
[387189653,1758625843799,-764.0,0.00021918,2]
[387189654,1758625843808,-500.0,0.00021918,2]
[387189655,1758625843817,-500.0,0.00021918,2]
[387189656,1758625843827,-441.0,0.00021918,2]
[387189657,1758625843836,-500.0,0.00021918,2]
[387189658,1758625843845,-850.43,0.00021945,30]
[387189659,1758625843854,-600.0,0.0002211,2]
[387189660,1758625843863,-1203.45,0.00022116,2]
[387189661,1758625843872,-322.68,0.00022116,2]
[387189662,1758625843881,-500.0,0.00022192,2]
[387189663,1758625843891,-764.0,0.00022192,2]
[387189664,1758625843901,-500.0,0.00022192,2]
[387189665,1758625843910,-500.0,0.00022192,2]
[387189666,1758625843920,-441.0,0.00022192,2]
[387189667,1758625843929,-500.0,0.00022192,2]
[387189668,1758625843938,-300.92,0.00022267,2]
[387189669,1758625843947,-800.0,0.00022388,2]
[387189670,1758625843957,-5277.13679974,0.00022397,2]
[387189671,1758625843966,-170.0,0.00022466,2]
[387189672,1758625843975,-764.0,0.00022466,2]
[387189673,1758625843985,-500.0,0.00022466,2]
[387189674,1758625843994,-500.0,0.00022466,2]
[387189675,1758625844004,-441.0,0.00022466,2]
[387189676,1758625844015,-367.092,0.00022466,2]
[387189677,1758625844025,-250.0,0.00022467,2]
[387189678,1758625844035,-600.0,0.00022658,2]
[387189679,1758625844045,-764.0,0.0002274,2]
[387189680,1758625844054,-500.0,0.0002274,2]
[387189681,1758625844063,-500.0,0.0002274,2]
[387189682,1758625844073,-441.0,0.0002274,2]
[387189683,1758625844082,-500.0,0.000228,2]
[387189684,1758625844092,-1000.0,0.00022899,2]
[387189685,1758625844101,-1522.91,0.000229,2]
[387189686,1758625844111,-764.0,0.00023014,2]
[387189687,1758625844120,-500.0,0.00023014,2]
[387189688,1758625844130,-500.0,0.00023014,2]
[387189689,1758625844139,-441.0,0.00023014,2]
[387189690,1758625844149,-154570.00532421,0.00023018,2]
[387189691,1758625844158,-154570.00532421,0.00023064,2]
[387189692,1758625844168,-5277.13679974,0.00023073,2]
[387189693,1758625844177,-135765.10628893,0.00023087,2]
[387189694,1758625844208,-503.39068757,0.00023087,2]
[387189695,1758625844219,-10560.0,0.00023087,2]
[387189696,1758625844231,-7741.50834771,0.00023087,2]
[387189697,1758625844240,-2332.98857466,0.00023089,2]
[387189698,1758625845423,-2748.34160164,0.00023089,2]
[387189699,1758625845435,-27695.90412222,0.00023089,2]
[387189700,1758625846126,-692.6102177,0.00023089,2]
[387189767,1758626741201,-1032.28,0.00022696,30]
[387189768,1758626756491,816.38,0.0001862,2]
[387189769,1758626756520,10380.395329,0.0001862,2]
[387189770,1758626758234,-171.91326188,0.0001862,2]
[387189771,1758626767322,-262.18635465,0.0001862,2]
[387189772,1758626772079,-306.95947412,0.0001862,2]
[387189774,1758626844035,-150.0,0.0001862,2]
[387189776,1758626858631,162.735478,0.00018475,2]
[387189777,1758626858673,213.60498,0.00018475,2]
[387189780,1758626861979,193.565695,0.00018475,2]
[387189782,1758626862384,193.565695,0.00018233,2]
[387189783,1758626862832,193.565695,0.00017999,2]
[387189784,1758626864096,166.74016055,0.00017997,2]
[387189785,1758626864119,26.82553445,0.00017997,2]
[387189786,1758626864430,216.090035,0.00018475,2]
[387189787,1758626864574,193.565695,0.00017996,2]
[387189788,1758626864877,216.090035,0.00018233,2]
[387189789,1758626864957,193.565695,0.00017995,2]
[387189790,1758626865477,193.565695,0.00017995,2]
[387189791,1758626865534,216.090035,0.00017999,2]
[387189792,1758626865973,193.565695,0.00017994,2]
[387189793,1758626866046,216.090035,0.00017997,2]
[387189794,1758626867241,193.565695,0.00017989,2]
[387189795,1758626867289,216.090035,0.00017996,2]
[387189796,1758626867374,193.565695,0.00017988,2]
[387189797,1758626867783,216.090035,0.00017995,2]
[387189798,1758626867967,193.565695,0.00017983,2]
[387189799,1758626870379,216.090035,0.00017995,2]
[387189800,1758626870879,216.090035,0.00017994,2]
[387189801,1758626871386,216.090035,0.00017989,2]
[387189804,1758626874010,216.090035,0.00017988,2]